[Event "*** Titled Tuesday Blitz"]
[Site "Chess.com"]
[Date "2020.11.10"]
[Round "3"]
[White "maxip32"]
[Black "GMTalks_Youtube"]
[Result "0-1"]
[WhiteElo "2404"]
[BlackElo "2631"]
[TimeControl "180+1"]
[EndTime "10:29:59 PST"]
[Termination "GMTalks_Youtube won by resignation"]

1. e4 {[%clk 0:03:00.9]} 1... e5 {[%clk 0:02:59.6]} 2. Nf3 {[%clk 0:03:00.3]}
2... Nc6 {[%clk 0:02:59.5]} 3. Bc4 {[%clk 0:03:00.4]} 3... Nf6 {[%clk 0:02:59]}
4. d3 {[%clk 0:03:00.2]} 4... Bc5 {[%clk 0:02:59.1]} 5. O-O {[%clk 0:03:00.3]}
5... d6 {[%clk 0:02:51.8]} 6. c3 {[%clk 0:02:58.9]} 6... h6 {[%clk 0:02:50.8]}
7. a4 {[%clk 0:02:54.9]} 7... a5 {[%clk 0:02:49.1]} 8. Na3 {[%clk 0:02:50.6]}
8... O-O {[%clk 0:02:47.1]} 9. Nc2 {[%clk 0:02:50.4]} 9... Ne7 {[%clk
0:02:41.4]} 10. Be3 {[%clk 0:02:48.8]} 10... Bxe3 {[%clk 0:02:39.1]} 11. Nxe3
{[%clk 0:02:48.2]} 11... c6 {[%clk 0:02:30.4]} 12. Bb3 {[%clk 0:02:43.9]} 12...
Ng6 {[%clk 0:02:27.8]} 13. Re1 {[%clk 0:02:36.8]} 13... Re8 {[%clk 0:02:26.3]}
14. Bc2 {[%clk 0:02:18.9]} 14... d5 {[%clk 0:02:22.6]} 15. exd5 {[%clk
0:01:46.3]} 15... cxd5 {[%clk 0:02:20.1]} 16. d4 {[%clk 0:01:46.5]} 16... e4
{[%clk 0:02:15.9]} 17. Nd2 {[%clk 0:01:44.2]} 17... Ra6 {[%clk 0:02:05.8]} 18.
f3 {[%clk 0:01:17.6]} 18... Nf4 {[%clk 0:01:50.3]} 19. fxe4 {[%clk 0:01:10.9]}
19... Nxe4 {[%clk 0:01:49.8]} 20. Nxd5 {[%clk 0:00:20]} 20... Nh3+ {[%clk
0:01:48.9]} 21. gxh3 {[%clk 0:00:17]} 21... Rg6+ {[%clk 0:01:44.1]} 22. Kf1
{[%clk 0:00:08.8]} 22... Bxh3+ {[%clk 0:01:40.9]} 23. Ke2 {[%clk 0:00:08.9]}
23... Bg4+ {[%clk 0:01:38.1]} 24. Kd3 {[%clk 0:00:08.4]} 24... Nf2+ {[%clk
0:01:36.1]} 0-1

[Event "*** Titled Tuesday Blitz"]
[Site "Chess.com"]
[Date "2020.11.10"]
[Round "3"]
[White "vrekhson"]
[Black "Vasily85"]
[Result "0-1"]
[WhiteElo "2199"]
[BlackElo "2397"]
[TimeControl "180+1"]
[EndTime "10:30:03 PST"]
[Termination "Vasily85 won on time"]

1. e4 {[%clk 0:03:00.9]} 1... c5 {[%clk 0:02:59.8]} 2. Nf3 {[%clk 0:03:00.3]}
2... e6 {[%clk 0:03:00]} 3. c3 {[%clk 0:02:57.1]} 3... Nf6 {[%clk 0:02:59]} 4.
e5 {[%clk 0:02:56.9]} 4... Nd5 {[%clk 0:02:58.8]} 5. d4 {[%clk 0:02:57.2]} 5...
cxd4 {[%clk 0:02:59.7]} 6. cxd4 {[%clk 0:02:56.7]} 6... d6 {[%clk 0:02:59.9]} 7.
Nc3 {[%clk 0:02:56.2]} 7... Nxc3 {[%clk 0:02:58.8]} 8. bxc3 {[%clk 0:02:55.6]}
8... dxe5 {[%clk 0:02:55.7]} 9. Nxe5 {[%clk 0:02:56.5]} 9... Nd7 {[%clk
0:02:56.3]} 10. Bf4 {[%clk 0:02:25.1]} 10... Be7 {[%clk 0:02:47.5]} 11. Bd3
{[%clk 0:02:20.7]} 11... Nxe5 {[%clk 0:02:41.2]} 12. Bxe5 {[%clk 0:02:18.6]}
12... Bf6 {[%clk 0:02:41.8]} 13. f4 {[%clk 0:02:13.4]} 13... O-O {[%clk
0:02:40.4]} 14. O-O {[%clk 0:02:12.9]} 14... b6 {[%clk 0:02:36.4]} 15. Qf3
{[%clk 0:01:51.8]} 15... Bd7 {[%clk 0:02:31.6]} 16. Be4 {[%clk 0:01:21.2]} 16...
Rc8 {[%clk 0:02:24.2]} 17. Bb7 {[%clk 0:01:21.6]} 17... Rc4 {[%clk 0:02:05.7]}
18. Ba6 {[%clk 0:01:06.8]} 18... b5 {[%clk 0:02:02.9]} 19. Rab1 {[%clk
0:00:59.6]} 19... Bxe5 {[%clk 0:01:53.5]} 20. fxe5 {[%clk 0:01:00.5]} 20... Qa5
{[%clk 0:01:53.8]} 21. Qb7 {[%clk 0:00:50]} 21... Bc8 {[%clk 0:01:36.2]} 22.
Qxb5 {[%clk 0:00:48.2]} 22... Qxa6 {[%clk 0:01:35.9]} 23. Rxf7 {[%clk
0:00:12.2]} 23... Rxf7 {[%clk 0:01:23.5]} 0-1

[Event "*** Titled Tuesday Blitz"]
[Site "Chess.com"]
[Date "2020.11.10"]
[Round "3"]
[White "ShapkinAnatoliy"]
[Black "anon481216"]
[Result "1/2-1/2"]
[WhiteElo "2609"]
[BlackElo "2406"]
[TimeControl "180+1"]
[EndTime "10:30:08 PST"]
[Termination "Game drawn by repetition"]

1. d4 {[%clk 0:02:58.5]} 1... Nf6 {[%clk 0:02:59.3]} 2. c4 {[%clk 0:02:59]} 2...
e6 {[%clk 0:02:59.4]} 3. g3 {[%clk 0:02:58.9]} 3... d5 {[%clk 0:02:59.3]} 4. Nf3
{[%clk 0:02:58.8]} 4... dxc4 {[%clk 0:02:59.4]} 5. Bg2 {[%clk 0:02:59.4]} 5...
Nc6 {[%clk 0:02:59.2]} 6. O-O {[%clk 0:02:56.9]} 6... Rb8 {[%clk 0:02:58.8]} 7.
Nc3 {[%clk 0:02:56.1]} 7... b5 {[%clk 0:02:56.6]} 8. Ne5 {[%clk 0:02:55.8]} 8...
Nxe5 {[%clk 0:02:39.6]} 9. dxe5 {[%clk 0:02:53]} 9... Nd7 {[%clk 0:02:39.9]} 10.
Bc6 {[%clk 0:02:50.4]} 10... a6 {[%clk 0:02:37.6]} 11. Be3 {[%clk 0:02:17.2]}
11... Bb7 {[%clk 0:02:32.9]} 12. Bxb7 {[%clk 0:02:02.6]} 12... Rxb7 {[%clk
0:02:32.8]} 13. Qd4 {[%clk 0:02:03]} 13... Bc5 {[%clk 0:02:15.6]} 14. Qe4 {[%clk
0:02:01]} 14... Rb6 {[%clk 0:02:08.3]} 15. Rad1 {[%clk 0:01:59.6]} 15... Bxe3
{[%clk 0:02:05.3]} 16. Qxe3 {[%clk 0:01:58.8]} 16... O-O {[%clk 0:02:05]} 17.
Rd2 {[%clk 0:01:51.8]} 17... Qe7 {[%clk 0:02:04.7]} 18. Rfd1 {[%clk 0:01:51.8]}
18... Nc5 {[%clk 0:02:03.2]} 19. Ne4 {[%clk 0:01:45.2]} 19... Nxe4 {[%clk
0:01:59.3]} 20. Qxe4 {[%clk 0:01:46.1]} 20... h6 {[%clk 0:01:49.4]} 21. Rd7
{[%clk 0:01:23.4]} 21... Qc5 {[%clk 0:01:49]} 22. Qf4 {[%clk 0:01:15.5]} 22...
Rbb8 {[%clk 0:01:45.8]} 23. Qd4 {[%clk 0:01:09]} 23... Qxd4 {[%clk 0:01:44.5]}
24. R1xd4 {[%clk 0:01:09.9]} 24... Rbc8 {[%clk 0:01:39.5]} 25. Kf1 {[%clk
0:01:05.2]} 25... f6 {[%clk 0:01:29.9]} 26. exf6 {[%clk 0:01:03.3]} 26... Rxf6
{[%clk 0:01:29.7]} 27. Ke1 {[%clk 0:01:02.3]} 27... Rf7 {[%clk 0:01:25]} 28. f4
{[%clk 0:00:45]} 28... Rcf8 {[%clk 0:01:19.4]} 29. Rxf7 {[%clk 0:00:38.2]} 29...
Rxf7 {[%clk 0:01:18.8]} 30. Rd8+ {[%clk 0:00:38.7]} 30... Rf8 {[%clk 0:01:14.1]}
31. Rd7 {[%clk 0:00:39.2]} 31... Rf7 {[%clk 0:01:14.2]} 32. Rd8+ {[%clk
0:00:38.9]} 32... Rf8 {[%clk 0:01:14.5]} 33. Rd7 {[%clk 0:00:37.9]} 33... Rf7
{[%clk 0:01:14.6]} 34. Rd8+ {[%clk 0:00:34.4]} 1/2-1/2

[Event "*** Titled Tuesday Blitz"]
[Site "Chess.com"]
[Date "2020.11.10"]
[Round "3"]
[White "AlexeiShirov"]
[Black "Nikithebest"]
[Result "1-0"]
[WhiteElo "2787"]
[BlackElo "2448"]
[TimeControl "180+1"]
[EndTime "10:30:10 PST"]
[Termination "AlexeiShirov won by resignation"]

1. e4 {[%clk 0:03:00.9]} 1... c5 {[%clk 0:02:59.4]} 2. Nf3 {[%clk 0:03:00.5]}
2... d6 {[%clk 0:02:59.7]} 3. d4 {[%clk 0:03:00.5]} 3... cxd4 {[%clk 0:02:59.9]}
4. Nxd4 {[%clk 0:03:00.5]} 4... Nf6 {[%clk 0:03:00.2]} 5. Nc3 {[%clk 0:03:00.4]}
5... a6 {[%clk 0:03:00.4]} 6. h3 {[%clk 0:02:59.7]} 6... g6 {[%clk 0:02:46]} 7.
g4 {[%clk 0:02:57.9]} 7... Bg7 {[%clk 0:02:39.8]} 8. Be3 {[%clk 0:02:56.2]} 8...
b5 {[%clk 0:02:38.5]} 9. a4 {[%clk 0:02:47.1]} 9... b4 {[%clk 0:02:22.4]} 10.
Nd5 {[%clk 0:02:46.6]} 10... Nxd5 {[%clk 0:02:19.3]} 11. exd5 {[%clk 0:02:46.1]}
11... Bb7 {[%clk 0:02:18.4]} 12. Bg2 {[%clk 0:02:45.9]} 12... Qc7 {[%clk
0:02:13.7]} 13. O-O {[%clk 0:02:37.2]} 13... Nd7 {[%clk 0:02:13]} 14. c3 {[%clk
0:02:16.1]} 14... bxc3 {[%clk 0:01:44.7]} 15. Rc1 {[%clk 0:02:14.1]} 15... Qa5
{[%clk 0:01:29.6]} 16. Rxc3 {[%clk 0:02:11.3]} 16... O-O {[%clk 0:01:01.3]} 17.
b4 {[%clk 0:02:10]} 17... Qd8 {[%clk 0:01:00.4]} 18. Nc6 {[%clk 0:02:02.9]}
18... Qe8 {[%clk 0:00:50]} 19. Rc2 {[%clk 0:01:54.8]} 19... Rc8 {[%clk
0:00:49.3]} 20. Qe2 {[%clk 0:01:50.5]} 20... e6 {[%clk 0:00:42.9]} 21. Bg5
{[%clk 0:01:39.6]} 21... f6 {[%clk 0:00:40.8]} 22. Qxe6+ {[%clk 0:01:11.5]}
22... Kh8 {[%clk 0:00:29.7]} 23. Bf4 {[%clk 0:01:08.8]} 23... Bxc6 {[%clk
0:00:29.4]} 24. Qxe8 {[%clk 0:01:04.4]} 24... Rfxe8 {[%clk 0:00:28.7]} 25. dxc6
{[%clk 0:01:04.3]} 25... Ne5 {[%clk 0:00:23.6]} 26. b5 {[%clk 0:01:02.5]} 1-0

[Event "*** Titled Tuesday Blitz"]
[Site "Chess.com"]
[Date "2020.11.10"]
[Round "3"]
[White "r31415"]
[Black "Anton_Demchenko"]
[Result "0-1"]
[WhiteElo "2459"]
[BlackElo "2834"]
[TimeControl "180+1"]
[EndTime "10:30:11 PST"]
[Termination "Anton_Demchenko won by resignation"]

1. e4 {[%clk 0:03:00.9]} 1... e5 {[%clk 0:02:59.9]} 2. Nf3 {[%clk 0:03:01]} 2...
Nc6 {[%clk 0:03:00.5]} 3. Bc4 {[%clk 0:03:01.6]} 3... Nf6 {[%clk 0:03:00]} 4. d3
{[%clk 0:03:01.4]} 4... h6 {[%clk 0:03:00.1]} 5. c3 {[%clk 0:03:01.8]} 5... d6
{[%clk 0:03:00.6]} 6. Nbd2 {[%clk 0:03:01.8]} 6... g5 {[%clk 0:02:57.5]} 7. O-O
{[%clk 0:03:01]} 7... Bg7 {[%clk 0:02:57.3]} 8. Ne1 {[%clk 0:02:42.2]} 8... O-O
{[%clk 0:02:50.4]} 9. Nc2 {[%clk 0:02:42.1]} 9... d5 {[%clk 0:02:50.1]} 10. exd5
{[%clk 0:02:40.2]} 10... Nxd5 {[%clk 0:02:50]} 11. Ne4 {[%clk 0:02:28.8]} 11...
Nf4 {[%clk 0:02:44.6]} 12. d4 {[%clk 0:02:12.2]} 12... Bf5 {[%clk 0:02:30.4]}
13. Ng3 {[%clk 0:01:50.8]} 13... Bg6 {[%clk 0:02:26.5]} 14. d5 {[%clk
0:01:45.9]} 14... Na5 {[%clk 0:02:18.6]} 15. b3 {[%clk 0:01:37.3]} 15... Nxc4
{[%clk 0:02:08.3]} 16. bxc4 {[%clk 0:01:36.6]} 16... f5 {[%clk 0:02:02.7]} 17.
Ba3 {[%clk 0:01:21.3]} 17... Rf7 {[%clk 0:02:03.1]} 18. Qb1 {[%clk 0:01:19.9]}
18... h5 {[%clk 0:01:55.5]} 19. Re1 {[%clk 0:01:10.4]} 19... b6 {[%clk
0:01:42.8]} 20. Nb4 {[%clk 0:01:09.7]} 20... e4 {[%clk 0:01:36.6]} 21. Qc2
{[%clk 0:01:05]} 21... Qd7 {[%clk 0:01:30.9]} 22. Ne2 {[%clk 0:01:02.4]} 22...
Nxe2+ {[%clk 0:00:51.7]} 23. Rxe2 {[%clk 0:01:02.2]} 23... f4 {[%clk 0:00:51.9]}
24. Nc6 {[%clk 0:00:59.9]} 24... f3 {[%clk 0:00:49.8]} 25. Re3 {[%clk
0:00:58.4]} 25... Qg4 {[%clk 0:00:47.4]} 0-1

[Event "*** Titled Tuesday Blitz"]
[Site "Chess.com"]
[Date "2020.11.10"]
[Round "3"]
[White "DrMamaliga"]
[Black "ZenBull"]
[Result "1-0"]
[WhiteElo "2338"]
[BlackElo "2135"]
[TimeControl "180+1"]
[EndTime "10:30:11 PST"]
[Termination "DrMamaliga won by resignation"]

1. c4 {[%clk 0:03:00.9]} 1... Nf6 {[%clk 0:02:59.2]} 2. Nf3 {[%clk 0:03:01.1]}
2... e6 {[%clk 0:02:59.3]} 3. b3 {[%clk 0:03:01]} 3... d5 {[%clk 0:02:57.4]} 4.
Bb2 {[%clk 0:03:01.1]} 4... Be7 {[%clk 0:02:57.1]} 5. g3 {[%clk 0:03:01.5]} 5...
b6 {[%clk 0:02:57.3]} 6. Bg2 {[%clk 0:03:00.1]} 6... Bb7 {[%clk 0:02:57.1]} 7.
O-O {[%clk 0:03:00.5]} 7... O-O {[%clk 0:02:57]} 8. e3 {[%clk 0:03:00.9]} 8...
Nbd7 {[%clk 0:02:53]} 9. Nc3 {[%clk 0:03:00.9]} 9... a6 {[%clk 0:02:45.5]} 10.
d3 {[%clk 0:02:59.2]} 10... Bd6 {[%clk 0:02:42.6]} 11. Qe2 {[%clk 0:02:53.7]}
11... Qe7 {[%clk 0:02:39.3]} 12. e4 {[%clk 0:02:52.4]} 12... dxe4 {[%clk
0:02:28.7]} 13. dxe4 {[%clk 0:02:53.3]} 13... e5 {[%clk 0:02:14.9]} 14. Rad1
{[%clk 0:02:48.7]} 14... Rad8 {[%clk 0:02:10.9]} 15. Nd5 {[%clk 0:02:45.7]}
15... Bxd5 {[%clk 0:02:09.1]} 16. exd5 {[%clk 0:02:46.6]} 16... Rfe8 {[%clk
0:02:04.5]} 17. Nd2 {[%clk 0:02:43.3]} 17... Nf8 {[%clk 0:01:53.7]} 18. Qd3
{[%clk 0:02:39.8]} 18... Ng6 {[%clk 0:01:51.5]} 19. Ne4 {[%clk 0:02:37.4]} 19...
Nxe4 {[%clk 0:01:50.6]} 20. Bxe4 {[%clk 0:02:38.3]} 20... Qf8 {[%clk 0:01:33]}
21. Rfe1 {[%clk 0:02:33.7]} 21... Re7 {[%clk 0:01:17.5]} 22. Re2 {[%clk
0:02:30.3]} 22... Rde8 {[%clk 0:01:17.3]} 23. Rde1 {[%clk 0:02:27.8]} 23... Kh8
{[%clk 0:01:12.5]} 24. h4 {[%clk 0:02:27.5]} 24... Qg8 {[%clk 0:01:07.4]} 25. a3
{[%clk 0:02:20.7]} 25... a5 {[%clk 0:01:06.4]} 26. Qc3 {[%clk 0:02:13.8]} 26...
f6 {[%clk 0:00:51.1]} 27. b4 {[%clk 0:02:10.9]} 27... axb4 {[%clk 0:00:50]} 28.
axb4 {[%clk 0:02:11.8]} 28... Rd7 {[%clk 0:00:44.9]} 29. c5 {[%clk 0:02:10.3]}
29... bxc5 {[%clk 0:00:44.4]} 30. bxc5 {[%clk 0:02:11.2]} 30... Bf8 {[%clk
0:00:43.2]} 31. d6 {[%clk 0:02:07.7]} 31... cxd6 {[%clk 0:00:24.2]} 32. Bc6
{[%clk 0:02:05.4]} 32... Red8 {[%clk 0:00:22.8]} 33. Bxd7 {[%clk 0:02:05.2]}
33... Rxd7 {[%clk 0:00:23.6]} 34. c6 {[%clk 0:02:05.2]} 34... Rc7 {[%clk
0:00:24]} 35. Qa5 {[%clk 0:02:02.8]} 35... Qf7 {[%clk 0:00:22.9]} 36. Rc2 {[%clk
0:01:58.4]} 36... d5 {[%clk 0:00:19.2]} 37. h5 {[%clk 0:01:56.4]} 37... Ra7
{[%clk 0:00:15.4]} 38. Qb6 {[%clk 0:01:53.7]} 38... Nf4 {[%clk 0:00:11.2]} 39.
gxf4 {[%clk 0:01:49.9]} 1-0

[Event "*** Titled Tuesday Blitz"]
[Site "Chess.com"]
[Date "2020.11.10"]
[Round "3"]
[White "Orest_Vovk"]
[Black "AniJak"]
[Result "1-0"]
[WhiteElo "2571"]
[BlackElo "2372"]
[TimeControl "180+1"]
[EndTime "10:30:13 PST"]
[Termination "Orest_Vovk won by resignation"]

1. d4 {[%clk 0:03:00.9]} 1... d5 {[%clk 0:02:59.6]} 2. Bf4 {[%clk 0:03:01.1]}
2... Nf6 {[%clk 0:02:58.7]} 3. e3 {[%clk 0:03:01.3]} 3... e6 {[%clk 0:02:57]} 4.
Nf3 {[%clk 0:03:01.6]} 4... Be7 {[%clk 0:02:56.1]} 5. Be2 {[%clk 0:03:01.9]}
5... O-O {[%clk 0:02:56.1]} 6. O-O {[%clk 0:03:02.3]} 6... c5 {[%clk 0:02:56.1]}
7. c3 {[%clk 0:03:02.1]} 7... Nc6 {[%clk 0:02:56]} 8. Nbd2 {[%clk 0:03:02.3]}
8... b6 {[%clk 0:02:56]} 9. a4 {[%clk 0:03:01.7]} 9... a5 {[%clk 0:02:52.4]} 10.
h3 {[%clk 0:02:59.6]} 10... Ba6 {[%clk 0:02:52.2]} 11. Bxa6 {[%clk 0:02:58.8]}
11... Rxa6 {[%clk 0:02:53.1]} 12. Qe2 {[%clk 0:02:58.8]} 12... Ra7 {[%clk
0:02:52.7]} 13. Ne5 {[%clk 0:02:52.3]} 13... Nxe5 {[%clk 0:02:39.5]} 14. Bxe5
{[%clk 0:02:52.4]} 14... Ne4 {[%clk 0:02:22.1]} 15. Nxe4 {[%clk 0:02:51.8]}
15... dxe4 {[%clk 0:02:21.7]} 16. Qb5 {[%clk 0:02:50.6]} 16... Rd7 {[%clk
0:02:13.3]} 17. Rfd1 {[%clk 0:02:44.8]} 17... f6 {[%clk 0:02:09.8]} 18. Bg3
{[%clk 0:02:44.3]} 18... cxd4 {[%clk 0:02:09.9]} 19. Rxd4 {[%clk 0:02:39.4]}
19... Rxd4 {[%clk 0:01:57.1]} 20. cxd4 {[%clk 0:02:39.3]} 20... Bd6 {[%clk
0:01:49.1]} 21. Qc6 {[%clk 0:02:32.3]} 21... Bxg3 {[%clk 0:01:46.8]} 22. Qxe6+
{[%clk 0:02:31.6]} 22... Kh8 {[%clk 0:01:42.4]} 23. fxg3 {[%clk 0:02:32.5]}
23... Re8 {[%clk 0:01:41.4]} 24. Qc6 {[%clk 0:02:27.4]} 24... h6 {[%clk
0:01:09.5]} 25. Rc1 {[%clk 0:02:26.1]} 25... Qb8 {[%clk 0:01:07.6]} 26. Qc7
{[%clk 0:02:23.5]} 26... Qxc7 {[%clk 0:01:04.7]} 27. Rxc7 {[%clk 0:02:23.2]}
27... Re6 {[%clk 0:01:05.5]} 28. g4 {[%clk 0:02:19]} 28... Kh7 {[%clk
0:01:05.3]} 29. Kh2 {[%clk 0:02:18.7]} 29... Kg6 {[%clk 0:01:05.5]} 30. Kg3
{[%clk 0:02:19]} 30... Kh7 {[%clk 0:00:58.7]} 31. Kf4 {[%clk 0:02:14.6]} 31...
Kg6 {[%clk 0:00:55.1]} 32. h4 {[%clk 0:02:13.4]} 32... Kh7 {[%clk 0:00:50]} 33.
Kf5 {[%clk 0:02:10.1]} 33... Re8 {[%clk 0:00:50.1]} 34. Rb7 {[%clk 0:02:02.2]}
34... Rc8 {[%clk 0:00:48.5]} 35. Rxb6 {[%clk 0:01:55.8]} 35... Rc2 {[%clk
0:00:49]} 36. Kxe4 {[%clk 0:01:55.2]} 36... Rxg2 {[%clk 0:00:48.7]} 37. Kf3
{[%clk 0:01:55.4]} 37... Rh2 {[%clk 0:00:47.8]} 38. h5 {[%clk 0:01:55.6]} 38...
Kg8 {[%clk 0:00:46.6]} 39. b4 {[%clk 0:01:54.3]} 39... axb4 {[%clk 0:00:45.1]}
40. Rxb4 {[%clk 0:01:55.2]} 40... Ra2 {[%clk 0:00:44.7]} 41. Rb8+ {[%clk
0:01:52.8]} 41... Kf7 {[%clk 0:00:45]} 42. Rb7+ {[%clk 0:01:51.7]} 42... Kf8
{[%clk 0:00:42.9]} 43. Ra7 {[%clk 0:01:51.8]} 43... Ra1 {[%clk 0:00:39.4]} 44.
a5 {[%clk 0:01:51.6]} 44... Kg8 {[%clk 0:00:38.7]} 45. a6 {[%clk 0:01:51.3]}
45... Kh7 {[%clk 0:00:38.4]} 46. Ra8 {[%clk 0:01:46.7]} 46... Ra2 {[%clk
0:00:38.4]} 47. d5 {[%clk 0:01:45.9]} 47... Ra3 {[%clk 0:00:38.7]} 48. d6 {[%clk
0:01:45.2]} 48... Rd3 {[%clk 0:00:38.1]} 49. a7 {[%clk 0:01:44.5]} 1-0

[Event "*** Titled Tuesday Blitz"]
[Site "Chess.com"]
[Date "2020.11.10"]
[Round "3"]
[White "BJthechessgod"]
[Black "AungTZ"]
[Result "1-0"]
[WhiteElo "2309"]
[BlackElo "2097"]
[TimeControl "180+1"]
[EndTime "10:30:13 PST"]
[Termination "BJthechessgod won by resignation"]

1. e4 {[%clk 0:03:00.9]} 1... c5 {[%clk 0:02:54.9]} 2. Nf3 {[%clk 0:03:00.5]}
2... Nc6 {[%clk 0:02:54.6]} 3. d4 {[%clk 0:03:00.4]} 3... cxd4 {[%clk
0:02:54.7]} 4. Nxd4 {[%clk 0:03:01.3]} 4... Nf6 {[%clk 0:02:54.8]} 5. Nc3 {[%clk
0:03:01.4]} 5... d6 {[%clk 0:02:55]} 6. f3 {[%clk 0:02:59.8]} 6... e5 {[%clk
0:02:35.9]} 7. Nb3 {[%clk 0:02:58.1]} 7... Be7 {[%clk 0:02:34.8]} 8. Bg5 {[%clk
0:02:52.2]} 8... O-O {[%clk 0:02:34]} 9. Bxf6 {[%clk 0:02:51.7]} 9... Bxf6
{[%clk 0:02:33.2]} 10. Nd5 {[%clk 0:02:52.3]} 10... Bg5 {[%clk 0:02:32.4]} 11.
Bc4 {[%clk 0:02:48.9]} 11... a5 {[%clk 0:02:31.3]} 12. a4 {[%clk 0:02:48.7]}
12... Nb4 {[%clk 0:02:25.8]} 13. Nxb4 {[%clk 0:02:47.4]} 13... axb4 {[%clk
0:02:25.4]} 14. O-O {[%clk 0:02:47]} 14... Bd7 {[%clk 0:02:21.5]} 15. Qxd6
{[%clk 0:02:41.5]} 15... Bxa4 {[%clk 0:02:17.4]} 16. Qxb4 {[%clk 0:02:38.7]}
16... b5 {[%clk 0:02:06.4]} 17. Bd5 {[%clk 0:02:30.3]} 17... Rc8 {[%clk
0:01:57.2]} 18. c3 {[%clk 0:02:22.1]} 18... Be7 {[%clk 0:01:54]} 19. Qa5 {[%clk
0:02:08.4]} 19... Qd7 {[%clk 0:01:33.1]} 20. Rfd1 {[%clk 0:01:42.2]} 20... Qe8
{[%clk 0:01:04.4]} 21. Rd2 {[%clk 0:01:33.2]} 21... Kh8 {[%clk 0:00:51.4]} 22.
Nc1 {[%clk 0:01:32.8]} 22... Bc5+ {[%clk 0:00:46.3]} 23. Kh1 {[%clk 0:01:13.4]}
23... Rc7 {[%clk 0:00:43.3]} 24. Qxc7 {[%clk 0:00:40.2]} 1-0

[Event "*** Titled Tuesday Blitz"]
[Site "Chess.com"]
[Date "2020.11.10"]
[Round "3"]
[White "HouseOfDurin"]
[Black "lucachess49"]
[Result "0-1"]
[WhiteElo "2175"]
[BlackElo "2352"]
[TimeControl "180+1"]
[EndTime "10:30:17 PST"]
[Termination "lucachess49 won by checkmate"]

1. d4 {[%clk 0:03:00.9]} 1... Nf6 {[%clk 0:02:59.7]} 2. Bg5 {[%clk 0:03:01.4]}
2... c5 {[%clk 0:02:59.1]} 3. Bxf6 {[%clk 0:03:01.1]} 3... gxf6 {[%clk
0:02:58.7]} 4. c3 {[%clk 0:03:01.8]} 4... d5 {[%clk 0:02:42.6]} 5. e3 {[%clk
0:02:55.4]} 5... Nc6 {[%clk 0:02:39.3]} 6. Nd2 {[%clk 0:02:37.2]} 6... Bf5
{[%clk 0:02:32.5]} 7. dxc5 {[%clk 0:02:26.2]} 7... e5 {[%clk 0:02:31.2]} 8. b4
{[%clk 0:02:25]} 8... a5 {[%clk 0:02:29]} 9. a3 {[%clk 0:02:24.4]} 9... axb4
{[%clk 0:01:32]} 10. cxb4 {[%clk 0:02:05.2]} 10... h5 {[%clk 0:01:29]} 11. Bb5
{[%clk 0:01:57.9]} 11... Bg4 {[%clk 0:00:56.5]} 12. f3 {[%clk 0:01:51.7]} 12...
Be6 {[%clk 0:00:54.7]} 13. Ne2 {[%clk 0:01:38.8]} 13... f5 {[%clk 0:00:52.8]}
14. O-O {[%clk 0:01:28.8]} 14... Rg8 {[%clk 0:00:50.5]} 15. f4 {[%clk
0:01:02.4]} 15... Bh6 {[%clk 0:00:37.9]} 16. Kh1 {[%clk 0:00:57.9]} 16... Qh4
{[%clk 0:00:20.4]} 17. Nf3 {[%clk 0:00:56.9]} 17... Qf6 {[%clk 0:00:17.6]} 18.
Bxc6+ {[%clk 0:00:56]} 18... bxc6 {[%clk 0:00:17.3]} 19. Nxe5 {[%clk 0:00:56]}
19... Qg7 {[%clk 0:00:16.7]} 20. Ng3 {[%clk 0:00:51]} 20... h4 {[%clk
0:00:16.8]} 21. Nh5 {[%clk 0:00:51.2]} 21... Qxg2# {[%clk 0:00:16.7]} 0-1

[Event "*** Titled Tuesday Blitz"]
[Site "Chess.com"]
[Date "2020.11.10"]
[Round "3"]
[White "enriquetejedor"]
[Black "VladimirBugayev"]
[Result "0-1"]
[WhiteElo "2484"]
[BlackElo "2250"]
[TimeControl "180+1"]
[EndTime "10:30:25 PST"]
[Termination "VladimirBugayev won on time"]

1. e4 {[%clk 0:03:00.9]} 1... c6 {[%clk 0:02:59.4]} 2. Nc3 {[%clk 0:02:59.1]}
2... d5 {[%clk 0:02:59.2]} 3. Nf3 {[%clk 0:03:00]} 3... Bg4 {[%clk 0:02:58.7]}
4. h3 {[%clk 0:02:55.3]} 4... Bxf3 {[%clk 0:02:58.9]} 5. Qxf3 {[%clk 0:02:55.5]}
5... e6 {[%clk 0:02:59.5]} 6. d4 {[%clk 0:02:48.7]} 6... Nf6 {[%clk 0:02:59.4]}
7. Bd3 {[%clk 0:02:42.3]} 7... dxe4 {[%clk 0:02:59.4]} 8. Nxe4 {[%clk
0:02:42.1]} 8... Qxd4 {[%clk 0:02:59.4]} 9. O-O {[%clk 0:02:23]} 9... Nbd7
{[%clk 0:02:49]} 10. c3 {[%clk 0:02:16.2]} 10... Qe5 {[%clk 0:02:41.3]} 11. Bf4
{[%clk 0:02:06.9]} 11... Qh5 {[%clk 0:02:36.4]} 12. Qg3 {[%clk 0:01:39.9]} 12...
Nxe4 {[%clk 0:02:17.7]} 13. Bxe4 {[%clk 0:01:29.7]} 13... O-O-O {[%clk
0:02:15.3]} 14. Rfd1 {[%clk 0:00:50.5]} 14... e5 {[%clk 0:02:11.3]} 15. Bg5
{[%clk 0:00:28]} 15... f6 {[%clk 0:02:04.6]} 16. Be3 {[%clk 0:00:18.8]} 16... f5
{[%clk 0:01:43]} 17. Bf3 {[%clk 0:00:10.8]} 17... Qf7 {[%clk 0:01:32.8]} 18.
Bxa7 {[%clk 0:00:10.8]} 18... e4 {[%clk 0:01:22.4]} 19. Be2 {[%clk 0:00:02.1]}
19... Bc5 {[%clk 0:01:01.8]} 0-1